fUST/lending_fUST_20260127
["ID","MTS","AMOUNT","RATE_DAILY","PERIOD"]
[403765901,1769526475019,500.0,0.00034926,120]
[403765902,1769526479467,574.2250047,0.00034926,120]
[403765903,1769526480174,500.0,0.00034926,120]
[403765904,1769526481411,500.0,0.00034926,120]
[403765905,1769526483368,535.26783259,0.00034926,120]
[403765906,1769526483639,500.0,0.00034926,120]
[403765907,1769526501092,500.0,0.00034926,120]
[403765908,1769526504948,500.0,0.00034926,120]
[403765909,1769526507195,500.0,0.00034926,120]
[403765910,1769526509051,430.3147641,0.00034926,120]
[403765911,1769526521288,500.0,0.00034926,120]
[403765930,1769526526517,500.0,0.00034926,120]
[403765931,1769526526860,500.0,0.00034926,120]
[403765935,1769526543362,500.0,0.00034926,120]
[403765942,1769526559891,500.0,0.00034926,120]
[403765949,1769526570278,500.0,0.00034926,120]
[403765955,1769526573472,500.0,0.00034926,120]
[403765956,1769526577229,500.0,0.00034926,120]
[403765966,1769526592430,584.16,0.00034926,120]
[403765969,1769526600429,500.0,0.00034926,120]
[403765970,1769526625944,169.9056065,0.00034926,120]
[403766007,1769526632207,-557.29275184,0.00012329,2]
[403766009,1769526632217,-594.0,0.00012329,2]
[403766011,1769526632227,-337.40965123,0.00012354,2]
[403766013,1769526632237,-300.0,0.00012378,2]
[403766015,1769526632246,-300.0,0.00012378,2]
[403766017,1769526632255,-413.23729799,0.00012378,2]
[403766019,1769526632264,-500.0,0.00012378,2]
[403766021,1769526632273,-500.0,0.00012378,2]
[403766023,1769526632282,-500.0,0.00012378,2]
[403766025,1769526632291,-525.0,0.00012378,2]
[403766027,1769526632299,-500.0,0.00012379,2]
[403766029,1769526632308,-189.98465313,0.00012379,2]
[403766099,1769526638296,-310.01534687,0.00012379,2]
[403766100,1769526638305,-366.84335928,0.00012379,2]
[403766101,1769526638317,-206.01791188,0.00012379,2]
[403766102,1769526638327,-1715.43933062,0.00012379,2]
[403766103,1769526638338,-721.64521688,0.00012379,2]
[403766104,1769526638355,-416.73274356,0.00012379,2]
[403766105,1769526638366,-262.65410162,0.00012379,2]
[403766106,1769526638378,-15237.6735459,0.00012379,2]
[403766107,1769526638387,-500.0,0.00012381,2]
[403766108,1769526638397,-500.0,0.00012381,2]
[403766109,1769526638406,-300.0,0.00012631,2]
[403766110,1769526638416,-300.0,0.00012631,2]
[403766111,1769526638425,-300.0,0.00012631,2]
[403766112,1769526638440,-300.0,0.00012631,2]
[403766113,1769526638461,-300.0,0.00012631,2]
[403766114,1769526638471,-300.0,0.00012631,2]
[403766115,1769526638482,-300.0,0.00012631,2]
[403766116,1769526638492,-300.0,0.00012631,2]
[403766117,1769526638503,-300.0,0.00012631,2]
[403766118,1769526638512,-300.0,0.00012631,2]
[403766119,1769526638523,-300.0,0.00012631,2]
[403766120,1769526638533,-300.0,0.00012631,2]
[403766121,1769526638543,-300.0,0.00012631,2]
[403766122,1769526638552,-300.0,0.00012631,2]
[403766123,1769526638562,-300.0,0.00012631,2]
[403766124,1769526638572,-600.0,0.00012631,2]
[403766125,1769526638581,-500.0,0.00013273,2]
[403766126,1769526638592,-500.0,0.00013273,2]
[403766127,1769526638607,-500.0,0.00013273,2]
[403766128,1769526638619,-500.0,0.00013273,2]
[403766129,1769526638628,-500.0,0.00013273,2]
[403766130,1769526638639,-500.0,0.00013273,2]
[403766131,1769526638650,-500.0,0.00013273,2]
[403766132,1769526638661,-500.0,0.00013273,2]
[403766133,1769526638671,-500.0,0.00013273,2]
[403766134,1769526638681,-500.0,0.00013273,2]
[403766135,1769526638692,-500.0,0.00013273,2]
[403766136,1769526638702,-500.0,0.00013273,2]
[403766137,1769526638713,-175.69914693,0.00013273,2]
[403766138,1769526638725,-500.0,0.00013273,2]
[403766139,1769526638734,-500.0,0.00013273,2]
[403766140,1769526638744,-409.96501025,0.00013273,2]
[403766141,1769526638753,-500.0,0.00013273,2]
[403766142,1769526638763,-500.0,0.00013273,2]
[403766143,1769526638772,-500.0,0.00013273,2]
[403766144,1769526638782,-500.0,0.00013273,2]
[403766145,1769526638791,-500.0,0.00013273,2]
[403766146,1769526638801,-500.0,0.00013273,2]
[403766147,1769526638810,-500.0,0.00013273,2]
[403766148,1769526638819,-500.0,0.00013273,2]
[403766149,1769526638832,-500.0,0.00013273,2]
[403766150,1769526638841,-500.0,0.00013273,2]
[403766151,1769526638850,-608.32613042,0.00013273,2]
[403766152,1769526638860,-500.0,0.00013273,2]
[403766153,1769526638871,-500.0,0.00013273,2]
[403766154,1769526638881,-500.0,0.00013273,2]
[403766155,1769526638890,-500.0,0.00013273,2]
[403766156,1769526638900,-500.0,0.00013273,2]
[403766157,1769526638911,-500.0,0.00013273,2]
[403766158,1769526638920,-500.0,0.00013273,2]
[403766159,1769526638930,-500.0,0.00013273,2]
[403766160,1769526638939,-500.0,0.00013273,2]
[403766161,1769526638948,-500.0,0.00013273,2]
[403766162,1769526638957,-500.0,0.00013273,2]
[403766163,1769526638967,-500.0,0.00013273,2]
[403766164,1769526638975,-500.0,0.00013273,2]
[403766165,1769526638984,-336.23725898,0.00013273,2]
[403766166,1769526638993,-500.0,0.00013273,2]
[403766167,1769526639002,-500.0,0.00013273,2]
[403766168,1769526639010,-500.0,0.00013273,2]
[403766169,1769526639020,-420.0,0.00013583,2]
[403766170,1769526639028,-300.0,0.00013673,2]
[403766171,1769526639038,-500.0,0.00013698,2]
[403766172,1769526639048,-342.70010887,0.00013698,2]
[403766173,1769526639058,-500.0,0.00013698,2]
[403766174,1769526639067,-500.0,0.00013698,2]
[403766175,1769526639077,-500.0,0.00013698,2]
[403766176,1769526639087,-500.0,0.00013698,2]
[403766177,1769526639097,-500.0,0.00013698,2]
[403766178,1769526639113,-500.0,0.00013698,2]
[403766179,1769526639133,-500.0,0.00013698,2]
[403766180,1769526639142,-500.0,0.00013698,2]
[403766181,1769526639152,-500.0,0.00013698,2]
[403766182,1769526639162,-500.0,0.00013698,2]
[403766183,1769526639172,-500.0,0.00013698,2]
[403766184,1769526639183,-500.0,0.00013698,2]
[403766185,1769526639193,-647.92,0.00013698,2]
[403766186,1769526639204,-500.0,0.00013698,2]
[403766187,1769526639214,-500.0,0.00013698,2]
[403766188,1769526639224,-500.0,0.00013698,2]
[403766189,1769526639234,-500.0,0.00013698,2]
[403766190,1769526639244,-500.0,0.00013698,2]
[403766191,1769526639254,-500.0,0.00013698,2]
[403766192,1769526639264,-371.0912414,0.00013698,2]
[403766193,1769526639274,-466.017291,0.00013699,2]
[403766194,1769526639284,-500.0,0.00013699,2]
[403766195,1769526639293,-500.0,0.00013699,2]
[403766196,1769526639304,-500.0,0.00013699,2]
[403766197,1769526639313,-500.0,0.00013699,2]
[403766198,1769526639323,-500.0,0.00013699,2]
[403766199,1769526639332,-500.0,0.00013699,2]
[403766200,1769526639341,-270.2821832,0.00013699,2]
[403766201,1769526639352,-500.0,0.00013699,2]
[403766202,1769526639363,-500.0,0.00013699,2]
[403766203,1769526639373,-500.0,0.00013699,2]
[403766204,1769526639382,-258.49073564,0.00013699,2]
[403766205,1769526639393,-500.0,0.00013699,2]
[403766206,1769526639404,-500.0,0.00013699,2]
[403766207,1769526639414,-500.0,0.00013699,2]
[403766208,1769526639424,-500.0,0.00013699,2]
[403766209,1769526639434,-500.0,0.00013699,2]
[403766210,1769526639444,-500.0,0.00013699,2]
[403766211,1769526639453,-160.0316999,0.00013699,2]
[403766212,1769526639470,-500.0,0.00013699,2]
[403766213,1769526639492,-192.4719613,0.00013699,2]
[403766214,1769526639503,-500.0,0.00013699,2]
[403766215,1769526639513,-500.0,0.00013699,2]
[403766216,1769526639524,-500.0,0.00013699,2]
[403766217,1769526639535,-500.0,0.00013699,2]
[403766218,1769526639546,-500.0,0.00013699,2]
[403766219,1769526639555,-500.0,0.00013699,2]
[403766220,1769526639567,-158.17867637,0.00013699,2]
[403766221,1769526639577,-500.0,0.00013699,2]
[403766222,1769526639587,-526.45560756,0.00013699,2]
[403766224,1769526639598,-520.4304196,0.00013699,2]
[403766226,1769526639608,-313.78183525,0.00013699,2]
[403766228,1769526639623,-500.17333764,0.00013699,2]
[403766230,1769526639632,-159.93705095,0.00013699,2]
[403766232,1769526639643,-500.0,0.00013699,2]
[403766234,1769526639654,-500.0,0.00013699,2]
[403766236,1769526639663,-502.61860429,0.00013699,2]
[403766238,1769526639673,-500.0,0.00013699,2]
[403766240,1769526639682,-500.0,0.00013699,2]
[403766242,1769526639691,-500.0,0.00013699,2]
[403766244,1769526639703,-500.0,0.00013699,2]
[403766246,1769526639714,-500.0,0.00013699,2]
[403766248,1769526639724,-502.31560209,0.00013699,2]
[403766250,1769526639734,-253.24401436,0.00013699,2]
[403766252,1769526639744,-500.0,0.00013699,2]
[403766254,1769526639754,-500.0,0.00013699,2]
[403766256,1769526639765,-500.0,0.00013699,2]
[403766258,1769526639776,-500.0,0.00013699,2]
[403766260,1769526639786,-500.0,0.00013699,2]
[403766262,1769526639796,-156.17641443,0.00013699,2]
[403766264,1769526639807,-500.0,0.00013699,2]
[403766266,1769526639816,-500.0,0.00013699,2]
[403766268,1769526639826,-158.14095068,0.00013699,2]
[403766270,1769526639837,-500.0,0.00013699,2]
[403766271,1769526639846,-500.0,0.00013699,2]
[403766273,1769526639856,-500.0,0.00013699,2]
[403766276,1769526639866,-166.69375134,0.00013699,2]
[403766277,1769526639877,-500.0,0.00013699,2]
[403766279,1769526639886,-500.0,0.00013699,2]
[403766281,1769526639895,-500.0,0.00013699,2]
[403766283,1769526639905,-500.0,0.00013699,2]
[403766285,1769526639916,-500.0,0.00013699,2]
[403766287,1769526639925,-500.0,0.00013699,2]
[403766291,1769526639935,-500.0,0.00013699,2]
[403766294,1769526639945,-256.54479806,0.00013699,2]
[403766296,1769526639954,-500.45177032,0.00013699,2]
[403766299,1769526639963,-500.2402527,0.00013699,2]
[403766302,1769526639972,-500.0,0.00013699,2]
[403766304,1769526639982,-525.32958188,0.00013699,2]
[403766307,1769526639991,-500.0,0.00013699,2]
[403766309,1769526640000,-500.0,0.00013699,2]
[403766311,1769526640010,-500.0,0.00013699,2]
[403766312,1769526640019,-474.58823047,0.00013699,2]
[403766315,1769526640028,-186.44548148,0.00013721,2]
[403766316,1769526640037,-824.94585229,0.00013821,2]
[403766318,1769526640047,-1000.0,0.00013821,2]
[403766321,1769526640056,-1000.0,0.00013821,2]
[403766323,1769526640067,-1000.0,0.00013821,2]
[403766325,1769526640076,-903.59077284,0.00013821,2]
[403766327,1769526640085,-500.0,0.00013821,2]
[403766329,1769526640094,-1000.0,0.00013821,2]
[403766331,1769526640105,-1000.0,0.00013821,2]
[403766333,1769526640114,-477.3513425,0.00013821,2]
[403766335,1769526640123,-1000.0,0.00013821,2]
[403766337,1769526640132,-1000.0,0.00013821,2]
[403766338,1769526640142,-1000.0,0.00013821,2]
[403766340,1769526640151,-1000.0,0.00013821,2]
[403766341,1769526640160,-1000.0,0.00013821,2]
[403766342,1769526640170,-1000.0,0.00013821,2]
[403766343,1769526640179,-1000.0,0.00013821,2]
[403766344,1769526640189,-457.66697968,0.00013821,2]
[403766345,1769526640198,-500.0,0.00013821,2]
[403766346,1769526640208,-1000.0,0.00013821,2]
[403766347,1769526640217,-500.0,0.00013821,2]
[403766348,1769526640227,-438.19186206,0.00013821,2]
[403766349,1769526640236,-661.06527431,0.00013821,2]
[403766350,1769526640245,-500.0,0.00013821,2]
[403766351,1769526640255,-500.0,0.00013821,2]
[403766352,1769526640264,-1000.0,0.00013821,2]
[403766353,1769526640274,-1000.0,0.00013821,2]
[403766354,1769526640283,-1000.0,0.00013821,2]
[403766355,1769526640292,-1000.0,0.00013821,2]
[403766357,1769526640302,-1000.0,0.00013821,2]
[403766359,1769526640311,-1000.0,0.00013821,2]
[403766361,1769526640320,-234.04994533,0.00013821,2]
[403766363,1769526640329,-1000.0,0.00013821,2]
[403766365,1769526640338,-1000.0,0.00013821,2]
[403766367,1769526640348,-500.0,0.00013821,2]
[403766369,1769526640357,-1000.0,0.00013821,2]
[403766371,1769526640366,-720.0,0.00013894,2]
[403766373,1769526640375,-1000.0,0.00014247,2]
[403766375,1769526640384,-398.14338845,0.00014354,2]
[403766377,1769526640394,-1500.0,0.00014368,2]
[403766379,1769526640403,-587.0,0.00014906,2]
[403766381,1769526640413,-500.0,0.00014916,2]
[403766383,1769526640422,-2000.0,0.00014916,2]
[403766385,1769526640431,-186.44548147,0.00014987,2]
[403766387,1769526640440,-864.0,0.00015284,2]
[403766389,1769526640449,-2500.0,0.00015464,2]
[403766391,1769526640458,-160.0,0.000158,2]
[403766393,1769526640467,-160.0,0.000158,2]
[403766395,1769526640477,-150.0,0.00016,2]
[403766397,1769526640486,-186.44548147,0.00016254,2]
[403766399,1769526640495,-250.0,0.0001629,2]
[403766417,1769526640645,-458.87712567,0.00016354,2]
[403766419,1769526640662,-823.0,0.00016357,2]
[403766421,1769526640672,-151.0,0.000164,2]
[403766423,1769526640681,-200.0,0.00016438,2]
[403766425,1769526640691,-151.0,0.000167,2]
[403766427,1769526640700,-160.0,0.000167,2]
[403766429,1769526640709,-160.0,0.000167,2]
[403766431,1769526640719,-742.55,0.00016801,2]
[403766433,1769526640728,-1000.0,0.00016812,2]
[403766435,1769526640738,-160.0,0.000169,2]
[403766437,1769526640747,-151.0,0.00017,2]
[403766439,1769526640756,-151.0,0.000172,2]
[403766441,1769526640766,-160.0,0.000173,2]
[403766443,1769526640775,-160.0,0.000173,2]
[403766445,1769526640784,-151.0,0.000174,2]
[403766447,1769526640795,-186.44548147,0.0001752,2]
[403766449,1769526640804,-1485.09,0.00017601,2]
[403766451,1769526640813,-151.0,0.000177,2]
[403766453,1769526640822,-151.0,0.000178,2]
[403766455,1769526640835,-150.0,0.00017863,2]
[403766457,1769526640845,-150.0,0.00017863,2]
[403766459,1769526640858,-152.15271456,0.00017863,2]
[403766461,1769526640868,-151.0647238,0.00017863,2]
[403766463,1769526640877,-150.0,0.00017863,2]
[403766466,1769526640887,-500.0,0.00017863,2]
[403766467,1769526640896,-150.0,0.00017863,2]
[403766469,1769526640908,-160.0,0.000179,2]
[403766471,1769526640916,-670.0,0.0001795,2]
[403766474,1769526640926,-150.0,0.00018,2]
[403766475,1769526640936,-150.0,0.00018,2]
[403766478,1769526640945,-269.63216851,0.00018,2]
[403766480,1769526640954,-500.0,0.00018,2]
[403766482,1769526640964,-151.0,0.00018,2]
[403766484,1769526640974,-150.0,0.00018137,2]
[403766486,1769526640983,-500.0,0.00018137,2]
[403766487,1769526640993,-500.0,0.00018274,2]
[403766490,1769526641003,-151.0,0.000183,2]
[403766492,1769526641013,-519.61086289,0.00018354,2]
[403766494,1769526641022,-151.0,0.000184,2]
[403766496,1769526641031,-2227.64,0.00018401,2]
[403766497,1769526641040,-1000.0,0.00018493,2]
[403766500,1769526641050,-244.0,0.00018493,2]
[403766502,1769526641059,-151.0,0.000187,2]
[403766504,1769526641068,-186.44548147,0.00018786,2]
[403766506,1769526641079,-500.0,0.00018799,2]
[403766508,1769526641087,-500.0,0.00018799,2]
[403766510,1769526641096,-500.0,0.00018799,2]
[403766512,1769526641109,-500.0,0.00018799,2]
[403766514,1769526641119,-500.0,0.00018799,2]
[403766516,1769526641128,-500.0,0.00018799,2]
[403766518,1769526641138,-500.0,0.00018799,2]
[403766520,1769526641148,-500.0,0.00018799,2]
[403766522,1769526641158,-500.0,0.00018799,2]
[403766524,1769526641167,-500.0,0.00018799,2]
[403766526,1769526641175,-500.0,0.00018799,2]
[403766528,1769526641184,-500.0,0.00018799,2]
[403766530,1769526641193,-500.0,0.00018799,2]
[403766532,1769526641202,-748944.69176148,0.000188,2]
[403766534,1769526641211,-579.89,0.000188,2]
[403766536,1769526641220,-579.89,0.000188,2]
[403766538,1769526641230,-579.89,0.000188,2]
[403766540,1769526641239,-579.89,0.000188,2]
[403766542,1769526641249,-579.89,0.000188,2]
[403766544,1769526641258,-579.89,0.000188,2]
[403766546,1769526641267,-579.89,0.000188,2]
[403766547,1769526641276,-579.89,0.000188,2]
[403766549,1769526641286,-579.89,0.000188,2]
[403766551,1769526641295,-579.89,0.000188,2]
[403766553,1769526641304,-579.89,0.000188,2]
[403766555,1769526641313,-579.89,0.000188,2]
[403766557,1769526641322,-579.89,0.000188,2]
[403766559,1769526641331,-579.89,0.000188,2]
[403766561,1769526641340,-579.89,0.000188,2]
[403766564,1769526641351,-579.89,0.000188,2]
[403766565,1769526641360,-579.89,0.000188,2]
[403766567,1769526641369,-579.89,0.000188,2]
[403766569,1769526641378,-579.89,0.000188,2]
[403766571,1769526641387,-579.89,0.000188,2]
[403766573,1769526641396,-579.89,0.000188,2]
[403766575,1769526641405,-579.89,0.000188,2]
[403766577,1769526641414,-579.89,0.000188,2]
[403766579,1769526641423,-579.89,0.000188,2]
[403766581,1769526641431,-579.89,0.000188,2]
[403766583,1769526641440,-579.89,0.000188,2]
[403766585,1769526641449,-579.89,0.000188,2]
[403766587,1769526641458,-579.89,0.000188,2]
[403766589,1769526641467,-579.89,0.000188,2]
[403766591,1769526641476,-579.89,0.000188,2]
[403766593,1769526641485,-579.89,0.000188,2]
[403766595,1769526641494,-579.89,0.000188,2]
[403766597,1769526641503,-978.38,0.000188,2]
[403766599,1769526641513,-202.0,0.00018886,2]
[403766601,1769526641524,-160.0,0.000189,3]
[403766603,1769526641535,-160.0,0.000189,3]
[403766605,1769526641544,-151.0,0.000189,2]
[403766607,1769526641554,-303.10001603,0.000189,2]
[403766609,1769526641563,-30000.0,0.0001892,2]
[403766611,1769526641572,-271.64951236,0.0001892,2]
[403766613,1769526641581,-201.93286099,0.0001892,2]
[403766615,1769526641590,-209.40437684,0.0001892,2]
[403766617,1769526641599,-217.15233878,0.0001892,2]
[403766619,1769526641609,-225.18697532,0.0001892,2]
[403766621,1769526641618,-233.51889341,0.0001892,2]
[403766623,1769526641627,-242.15909246,0.0001892,2]
[403766625,1769526641636,-251.11897888,0.0001892,2]
[403766627,1769526641645,-260.4103811,0.0001892,2]
[403766629,1769526641654,-270.0455652,0.0001892,2]
[403766631,1769526641663,-280.03725112,0.0001892,2]
[403766633,1769526641672,-290.39862941,0.0001892,2]
[403766635,1769526641681,-301.1433787,0.0001892,2]
[403766637,1769526641690,-553.64373807,0.0001892,2]
[403766639,1769526641699,-151.0,0.0001892,2]
[403766641,1769526641708,-2674.60743027,0.0001892,2]
[403766643,1769526641717,-202.0,0.00018922,2]
[403766645,1769526641726,-169.70744721,0.00018989,2]
[403766647,1769526641735,-151.0,0.00019,2]
[403766649,1769526641745,-303.10001603,0.00019089,2]
[403766651,1769526641753,-160.0,0.000192,5]
[403766653,1769526641763,-2970.18,0.00019201,2]
[403766655,1769526641772,-303.10001603,0.00019278,2]
[403766657,1769526641781,-151.0,0.000193,2]
[403766659,1769526641791,-202.0,0.00019317,2]
[403766661,1769526641800,-151.0,0.000194,2]
[403766663,1769526641810,-501.31416643,0.00019434,5]
[403766665,1769526641820,-201.489,0.00019448,2]
[403766667,1769526641829,-222.615,0.00019448,2]
[403766669,1769526641843,-179.0,0.00019448,2]
[403766671,1769526641853,-303.10001603,0.00019467,2]
[403766673,1769526641862,-31110.0,0.00019468,2]
[403766675,1769526641871,-538.04615828,0.00019468,2]
[403766677,1769526641881,-2773.56790519,0.00019468,2]
[403766679,1769526641891,-17265.4797186,0.00019504,2]
[403766681,1769526641900,-7149.6661385,0.00019504,2]
[403766683,1769526641913,-13759.720967,0.00019504,2]
[403766685,1769526641923,-244.84,0.00019576,2]
[403766687,1769526641933,-169.7074472,0.00019576,2]
[403766689,1769526641942,-168.94,0.000196,2]
[403766691,1769526641951,-279.72,0.000196,2]
[403766693,1769526641962,-6885.9,0.000196,2]
[403766695,1769526641972,-168.11,0.000196,2]
[403766698,1769526641983,-153.5789033,0.000196,2]
[403766700,1769526641992,-335.0,0.000196,2]
[403766702,1769526642002,-335.0,0.000196,2]
[403766704,1769526642011,-335.0,0.000196,2]
[403766706,1769526642020,-335.0,0.000196,2]
[403766708,1769526642030,-335.0,0.000196,2]
[403766710,1769526642039,-335.0,0.000196,2]
[403766712,1769526642048,-335.0,0.000196,2]
[403766714,1769526642057,-335.0,0.000196,2]
[403766716,1769526642066,-335.0,0.000196,2]
[403766718,1769526642075,-335.0,0.000196,2]
[403766720,1769526642084,-335.0,0.000196,2]
[403766722,1769526642093,-335.0,0.000196,2]
[403766724,1769526642104,-335.0,0.000196,2]
[403766726,1769526642112,-335.0,0.000196,2]
[403766728,1769526642122,-335.0,0.000196,2]
[403766730,1769526642131,-335.0,0.000196,2]
[403766732,1769526642140,-335.0,0.000196,2]
[403766734,1769526642150,-335.0,0.000196,2]
[403766736,1769526642159,-335.0,0.000196,2]
[403766738,1769526642169,-335.0,0.000196,2]
[403766740,1769526642178,-335.0,0.000196,2]
[403766742,1769526642187,-335.0,0.000196,2]
[403766744,1769526642197,-335.0,0.000196,2]
[403766746,1769526642206,-335.0,0.000196,2]
[403766748,1769526642215,-335.0,0.000196,2]
[403766750,1769526642225,-335.0,0.000196,2]
[403766752,1769526642235,-335.0,0.000196,2]
[403766754,1769526642244,-335.0,0.000196,2]
[403766756,1769526642253,-335.0,0.000196,2]
[403766758,1769526642262,-335.0,0.000196,2]
[403766759,1769526642271,-335.0,0.000196,2]
[403766762,1769526642281,-335.0,0.000196,2]
[403766763,1769526642290,-335.0,0.000196,2]
[403766766,1769526642300,-335.0,0.000196,2]
[403766768,1769526642309,-335.0,0.000196,2]
[403766770,1769526642319,-335.0,0.000196,2]
[403766772,1769526642328,-335.0,0.000196,2]
[403766774,1769526642337,-335.0,0.000196,2]
[403766776,1769526642346,-335.0,0.000196,2]
[403766778,1769526642356,-335.0,0.000196,2]
[403766780,1769526642365,-335.0,0.000196,2]
[403766782,1769526642374,-335.0,0.000196,2]
[403766784,1769526642383,-335.0,0.000196,2]
[403766786,1769526642393,-335.0,0.000196,2]
[403766788,1769526642402,-335.0,0.000196,2]
[403766790,1769526642411,-335.0,0.000196,2]
[403766792,1769526642420,-335.0,0.000196,2]
[403766794,1769526642430,-335.0,0.000196,2]
[403766796,1769526642439,-335.0,0.000196,2]
[403766797,1769526642448,-335.0,0.000196,2]
[403766799,1769526642457,-335.0,0.000196,2]
[403766801,1769526642467,-335.0,0.000196,2]
[403766804,1769526642476,-335.0,0.000196,2]
[403766806,1769526642486,-335.0,0.000196,2]
[403766808,1769526642495,-335.0,0.000196,2]
[403766809,1769526642504,-335.0,0.000196,2]
[403766811,1769526642513,-335.0,0.000196,2]
[403766813,1769526642522,-335.0,0.000196,2]
[403766815,1769526642535,-335.0,0.000196,2]
[403766817,1769526642544,-335.0,0.000196,2]
[403766819,1769526642554,-335.0,0.000196,2]
[403766821,1769526642563,-335.0,0.000196,2]
[403766823,1769526642573,-335.0,0.000196,2]
[403766825,1769526642582,-335.0,0.000196,2]
[403766827,1769526642591,-335.0,0.000196,2]
[403766829,1769526642600,-335.0,0.000196,2]
[403766831,1769526642610,-335.0,0.000196,2]
[403766833,1769526642620,-335.0,0.000196,2]
[403766835,1769526642630,-335.0,0.000196,2]
[403766837,1769526642639,-335.0,0.000196,2]
[403766839,1769526642648,-335.0,0.000196,2]
[403766841,1769526642657,-335.0,0.000196,2]
[403766843,1769526642667,-335.0,0.000196,2]
[403766845,1769526642676,-335.0,0.000196,2]
[403766847,1769526642685,-335.0,0.000196,2]
[403766849,1769526642693,-335.0,0.000196,2]
[403766851,1769526642702,-335.0,0.000196,2]
[403766853,1769526642711,-335.0,0.000196,2]
[403766855,1769526642720,-335.0,0.000196,2]
[403766857,1769526642729,-335.0,0.000196,2]
[403766859,1769526642738,-335.0,0.000196,2]
[403766861,1769526642746,-335.0,0.000196,2]
[403766863,1769526642755,-335.0,0.000196,2]
[403766865,1769526642765,-335.0,0.000196,2]
[403766867,1769526642774,-335.0,0.000196,2]
[403766869,1769526642783,-335.0,0.000196,2]
[403766871,1769526642793,-335.0,0.000196,2]
[403766873,1769526642802,-335.0,0.000196,2]
[403766875,1769526642811,-335.0,0.000196,2]
[403766877,1769526642820,-335.0,0.000196,2]
[403766879,1769526642829,-195.43253224,0.000196,2]
[403766881,1769526642841,-160541.36696786,0.000196,2]
[403766952,1769526643678,-500.0,0.00012378,2]
[403766954,1769526643688,-500.0,0.00012378,2]
[403766956,1769526643697,-500.0,0.00012378,2]
[403766958,1769526643707,-500.0,0.00012378,2]
[403766960,1769526643716,-500.0,0.00012378,2]
[403766979,1769526643881,-500.0,0.00012378,2]
[403766981,1769526643891,-500.0,0.00012378,2]
[403766983,1769526643900,-500.0,0.00012378,2]
[403766985,1769526643912,-500.0,0.00012378,2]
[403766987,1769526643921,-500.0,0.00012378,2]
[403766989,1769526643931,-500.0,0.00012378,2]
[403766991,1769526643940,-500.0,0.00012378,2]
[403766993,1769526643949,-500.0,0.00012378,2]
[403766995,1769526643958,-500.0,0.00012378,2]
[403766997,1769526643967,-500.0,0.00012378,2]
[403766999,1769526643976,-488.29263849,0.00012378,2]